[Event "*** Titled Tuesday Blitz"]
[Site "Chess.com"]
[Date "2020.11.03"]
[Round "8"]
[White "shnitez"]
[Black "JoliyRoger"]
[Result "1-0"]
[WhiteElo "2526"]
[BlackElo "2370"]
[TimeControl "180+1"]
[EndTime "11:32:35 PST"]
[Termination "shnitez won by checkmate"]

1. e4 {[%clk 0:03:00.9]} 1... c6 {[%clk 0:02:58.8]} 2. d4 {[%clk 0:02:59.5]}
2... d5 {[%clk 0:02:59.4]} 3. e5 {[%clk 0:02:59.8]} 3... Bf5 {[%clk 0:02:58.6]}
4. h4 {[%clk 0:02:58.1]} 4... Qb6 {[%clk 0:02:58.3]} 5. Nc3 {[%clk 0:02:51]}
5... a6 {[%clk 0:02:52.7]} 6. a4 {[%clk 0:02:46.2]} 6... a5 {[%clk 0:02:38.8]}
7. Ra3 {[%clk 0:02:37.3]} 7... h6 {[%clk 0:02:28]} 8. Rb3 {[%clk 0:02:34.9]}
8... Qc7 {[%clk 0:02:28.4]} 9. g4 {[%clk 0:02:34.1]} 9... Bd7 {[%clk 0:02:08.9]}
10. Bd3 {[%clk 0:02:26.3]} 10... e6 {[%clk 0:02:07.8]} 11. f4 {[%clk 0:02:16.6]}
11... h5 {[%clk 0:01:58.2]} 12. gxh5 {[%clk 0:02:07.6]} 12... Nh6 {[%clk
0:01:58.2]} 13. Nge2 {[%clk 0:02:05.8]} 13... Na6 {[%clk 0:01:55.3]} 14. Ng3
{[%clk 0:02:01.7]} 14... Nb4 {[%clk 0:01:55.6]} 15. Be2 {[%clk 0:01:51.6]} 15...
Be7 {[%clk 0:01:56]} 16. Be3 {[%clk 0:01:43.2]} 16... Qd8 {[%clk 0:01:55.2]} 17.
Kf2 {[%clk 0:01:31.6]} 17... Bxh4 {[%clk 0:01:54.4]} 18. Bd3 {[%clk 0:01:15.4]}
18... Nxd3+ {[%clk 0:01:48.8]} 19. Qxd3 {[%clk 0:01:16.3]} 19... Nf5 {[%clk
0:01:48.5]} 20. Ne2 {[%clk 0:01:16.7]} 20... b5 {[%clk 0:01:42.8]} 21. Kg2
{[%clk 0:01:05.1]} 21... bxa4 {[%clk 0:00:36.9]} 22. Nxf5 {[%clk 0:00:47.1]}
22... exf5 {[%clk 0:00:34.7]} 23. Ra3 {[%clk 0:00:41.6]} 23... Be7 {[%clk
0:00:35.2]} 24. Rxa4 {[%clk 0:00:40.5]} 24... c5 {[%clk 0:00:35.7]} 25. Raa1
{[%clk 0:00:40.4]} 25... c4 {[%clk 0:00:31.6]} 26. Qd2 {[%clk 0:00:37.2]} 26...
Qb6 {[%clk 0:00:30]} 27. Nc3 {[%clk 0:00:29]} 27... Be6 {[%clk 0:00:25.8]} 28.
Kf2 {[%clk 0:00:22.3]} 28... Bb4 {[%clk 0:00:26]} 29. Rag1 {[%clk 0:00:20]}
29... Rh7 {[%clk 0:00:22.1]} 30. Ra1 {[%clk 0:00:15.5]} 30... Ke7 {[%clk
0:00:20.3]} 31. Qe2 {[%clk 0:00:15.7]} 31... Rah8 {[%clk 0:00:18]} 32. Na4
{[%clk 0:00:15.9]} 32... Qc6 {[%clk 0:00:17.4]} 33. c3 {[%clk 0:00:14.9]} 33...
g6 {[%clk 0:00:15.8]} 34. cxb4 {[%clk 0:00:13.8]} 34... axb4 {[%clk 0:00:16.4]}
35. Nc5 {[%clk 0:00:14.2]} 35... Rxh5 {[%clk 0:00:15.3]} 36. Rxh5 {[%clk
0:00:14.2]} 36... Rxh5 {[%clk 0:00:15.9]} 37. Kg2 {[%clk 0:00:11.8]} 37... Kf8
{[%clk 0:00:13.3]} 38. Rh1 {[%clk 0:00:09.3]} 38... Rxh1 {[%clk 0:00:12.8]} 39.
Kxh1 {[%clk 0:00:10.2]} 39... Qb6 {[%clk 0:00:11.9]} 40. Qd2 {[%clk 0:00:09.1]}
40... Qa5 {[%clk 0:00:11.2]} 41. Kg2 {[%clk 0:00:09.1]} 41... Qa2 {[%clk
0:00:11.3]} 42. Qxb4 {[%clk 0:00:08.6]} 42... Qb1 {[%clk 0:00:11.6]} 43. Nxe6+
{[%clk 0:00:07.8]} 43... Kg8 {[%clk 0:00:08.7]} 44. Qf8+ {[%clk 0:00:07.7]}
44... Kh7 {[%clk 0:00:09.3]} 45. Qg7# {[%clk 0:00:08.6]} 1-0

[Event "*** Titled Tuesday Blitz"]
[Site "Chess.com"]
[Date "2020.11.03"]
[Round "8"]
[White "Sokoloco"]
[Black "Mimsychess"]
[Result "1-0"]
[WhiteElo "2452"]
[BlackElo "2319"]
[TimeControl "180+1"]
[EndTime "11:32:36 PST"]
[Termination "Sokoloco won by checkmate"]

1. b3 {[%clk 0:03:00.9]} 1... d5 {[%clk 0:02:52.4]} 2. Bb2 {[%clk 0:03:00.5]}
2... Bg4 {[%clk 0:02:52.1]} 3. h3 {[%clk 0:02:53.4]} 3... Bh5 {[%clk 0:02:50.8]}
4. Nf3 {[%clk 0:02:53.7]} 4... Nd7 {[%clk 0:02:42]} 5. d3 {[%clk 0:02:46.4]}
5... Bxf3 {[%clk 0:02:41.6]} 6. exf3 {[%clk 0:02:44.4]} 6... Ngf6 {[%clk
0:02:41.7]} 7. f4 {[%clk 0:02:43.4]} 7... g6 {[%clk 0:02:41.2]} 8. g4 {[%clk
0:02:41]} 8... Bg7 {[%clk 0:02:39.9]} 9. Be2 {[%clk 0:02:34.4]} 9... O-O {[%clk
0:02:33.9]} 10. Nd2 {[%clk 0:02:23.7]} 10... Ne8 {[%clk 0:02:28.1]} 11. Bxg7
{[%clk 0:02:17]} 11... Nxg7 {[%clk 0:02:29]} 12. Nf3 {[%clk 0:02:15.7]} 12... c6
{[%clk 0:02:27]} 13. Qd2 {[%clk 0:02:14.6]} 13... Qc7 {[%clk 0:02:24.5]} 14. d4
{[%clk 0:02:08]} 14... e6 {[%clk 0:02:10.5]} 15. h4 {[%clk 0:01:49.8]} 15... Nf6
{[%clk 0:02:10.3]} 16. Ne5 {[%clk 0:01:25.9]} 16... Ne4 {[%clk 0:02:05.3]} 17.
Qe3 {[%clk 0:01:23.2]} 17... f6 {[%clk 0:02:04.5]} 18. Nd3 {[%clk 0:01:19.8]}
18... Rae8 {[%clk 0:02:04]} 19. O-O-O {[%clk 0:01:13.4]} 19... b6 {[%clk
0:02:00.9]} 20. Kb2 {[%clk 0:01:07.1]} 20... c5 {[%clk 0:01:54.4]} 21. f3 {[%clk
0:00:55.8]} 21... cxd4 {[%clk 0:01:44.7]} 22. Qxd4 {[%clk 0:00:54.4]} 22... Ng3
{[%clk 0:01:32.9]} 23. Rh2 {[%clk 0:00:54.2]} 23... Rc8 {[%clk 0:01:31]} 24. Bf1
{[%clk 0:00:52.6]} 24... Nxf1 {[%clk 0:01:28.2]} 25. Rxf1 {[%clk 0:00:53.5]}
25... Qd6 {[%clk 0:01:08.7]} 26. h5 {[%clk 0:00:46.9]} 26... gxh5 {[%clk
0:01:03.9]} 27. Rg1 {[%clk 0:00:47.2]} 27... hxg4 {[%clk 0:00:54.9]} 28. Rxg4
{[%clk 0:00:44.5]} 28... Rf7 {[%clk 0:00:49.7]} 29. Qg1 {[%clk 0:00:41.4]} 29...
Qc7 {[%clk 0:00:43.3]} 30. Rgh4 {[%clk 0:00:34.5]} 30... Qc3+ {[%clk 0:00:40]}
31. Kb1 {[%clk 0:00:33.9]} 31... Kf8 {[%clk 0:00:17.2]} 32. Rxh7 {[%clk
0:00:33.4]} 32... Rcc7 {[%clk 0:00:17.7]} 33. Qg6 {[%clk 0:00:09.2]} 33... f5
{[%clk 0:00:08.9]} 34. Qg5 {[%clk 0:00:05.7]} 34... Qf6 {[%clk 0:00:07.9]} 35.
Ne5 {[%clk 0:00:04.3]} 35... Qxg5 {[%clk 0:00:08]} 36. fxg5 {[%clk 0:00:04.8]}
36... Rce7 {[%clk 0:00:02.3]} 37. Rh8# {[%clk 0:00:04.2]} 1-0

[Event "*** Titled Tuesday Blitz"]
[Site "Chess.com"]
[Date "2020.11.03"]
[Round "8"]
[White "Trickov"]
[Black "ChSalas"]
[Result "1/2-1/2"]
[WhiteElo "2334"]
[BlackElo "2500"]
[TimeControl "180+1"]
[EndTime "11:32:38 PST"]
[Termination "Game drawn - insufficient material"]

1. d3 {[%clk 0:01:13.9]} 1... d5 {[%clk 0:02:17.7]} 2. Nf3 {[%clk 0:01:14.8]}
2... Nf6 {[%clk 0:02:16.2]} 3. g3 {[%clk 0:01:13.7]} 3... c6 {[%clk 0:02:15.3]}
4. Bg2 {[%clk 0:01:13.8]} 4... Bf5 {[%clk 0:02:11.3]} 5. O-O {[%clk 0:01:13.8]}
5... e6 {[%clk 0:02:11.7]} 6. c4 {[%clk 0:01:13.7]} 6... Nbd7 {[%clk 0:02:11.9]}
7. cxd5 {[%clk 0:01:13.2]} 7... exd5 {[%clk 0:02:10.2]} 8. Nd4 {[%clk
0:01:12.5]} 8... Bg6 {[%clk 0:01:52.2]} 9. Nc3 {[%clk 0:01:13]} 9... Bc5 {[%clk
0:01:50.3]} 10. Nb3 {[%clk 0:01:12.2]} 10... Bb6 {[%clk 0:01:49.4]} 11. e4
{[%clk 0:01:12.4]} 11... dxe4 {[%clk 0:01:45.8]} 12. dxe4 {[%clk 0:01:11.4]}
12... Nc5 {[%clk 0:01:36.1]} 13. Be3 {[%clk 0:01:08.3]} 13... Qxd1 {[%clk
0:01:33.4]} 14. Rfxd1 {[%clk 0:01:06.8]} 14... Nxb3 {[%clk 0:01:29.6]} 15. axb3
{[%clk 0:01:05.9]} 15... Bxe3 {[%clk 0:01:29.6]} 16. fxe3 {[%clk 0:01:03.9]}
16... Ng4 {[%clk 0:01:26.2]} 17. Rd3 {[%clk 0:00:55.1]} 17... Ne5 {[%clk
0:01:21.9]} 18. Rd4 {[%clk 0:00:55]} 18... Ke7 {[%clk 0:01:14.3]} 19. b4 {[%clk
0:00:53.8]} 19... a6 {[%clk 0:01:11.1]} 20. Ra5 {[%clk 0:00:51.7]} 20... f6
{[%clk 0:01:09.1]} 21. Bh3 {[%clk 0:00:49.9]} 21... Nf3+ {[%clk 0:01:04.1]} 22.
Kf2 {[%clk 0:00:50]} 22... Nxd4 {[%clk 0:01:04.3]} 23. exd4 {[%clk 0:00:50.3]}
23... Rhd8 {[%clk 0:01:02.1]} 24. Ke3 {[%clk 0:00:49.7]} 24... Bf7 {[%clk
0:01:00.6]} 25. Na4 {[%clk 0:00:46.7]} 25... Bc4 {[%clk 0:00:53.5]} 26. Nb6
{[%clk 0:00:40.2]} 26... Bb5 {[%clk 0:00:50.5]} 27. Nxa8 {[%clk 0:00:35.8]}
27... Rxa8 {[%clk 0:00:51.4]} 28. Ra1 {[%clk 0:00:35.2]} 28... b6 {[%clk
0:00:51.1]} 29. Bg2 {[%clk 0:00:33.7]} 29... a5 {[%clk 0:00:50.9]} 30. bxa5
{[%clk 0:00:33.4]} 30... Rxa5 {[%clk 0:00:51.2]} 31. Rxa5 {[%clk 0:00:32.9]}
31... bxa5 {[%clk 0:00:52.1]} 32. Bh3 {[%clk 0:00:32.9]} 32... Kd6 {[%clk
0:00:52]} 33. Bf5 {[%clk 0:00:29.3]} 33... h6 {[%clk 0:00:50.2]} 34. Kf4 {[%clk
0:00:28.6]} 34... g5+ {[%clk 0:00:48.7]} 35. Ke3 {[%clk 0:00:28.2]} 35... c5
{[%clk 0:00:48.5]} 36. h4 {[%clk 0:00:27.5]} 36... cxd4+ {[%clk 0:00:47]} 37.
Kxd4 {[%clk 0:00:27.4]} 37... Be2 {[%clk 0:00:47]} 38. Bc8 {[%clk 0:00:26.4]}
38... Bh5 {[%clk 0:00:44.5]} 39. Bh3 {[%clk 0:00:26.1]} 39... Kc6 {[%clk
0:00:41.3]} 40. Bf1 {[%clk 0:00:25.4]} 40... Bf7 {[%clk 0:00:38.7]} 41. e5
{[%clk 0:00:24.5]} 41... fxe5+ {[%clk 0:00:37.6]} 42. Kxe5 {[%clk 0:00:24.8]}
42... gxh4 {[%clk 0:00:36.5]} 43. gxh4 {[%clk 0:00:21.5]} 43... Kc5 {[%clk
0:00:36.8]} 44. Kf6 {[%clk 0:00:21.6]} 44... Be8 {[%clk 0:00:35.4]} 45. Kg7
{[%clk 0:00:20.6]} 45... h5 {[%clk 0:00:34.5]} 46. Kh6 {[%clk 0:00:20.2]} 46...
Kb4 {[%clk 0:00:34.7]} 47. Be2 {[%clk 0:00:18.9]} 47... Kb3 {[%clk 0:00:30.4]}
48. Bxh5 {[%clk 0:00:18.9]} 48... Bxh5 {[%clk 0:00:29.9]} 49. Kxh5 {[%clk
0:00:19.1]} 49... Kxb2 {[%clk 0:00:30.8]} 50. Kg6 {[%clk 0:00:17.3]} 50... a4
{[%clk 0:00:31.7]} 51. h5 {[%clk 0:00:17.4]} 51... a3 {[%clk 0:00:32.6]} 52. h6
{[%clk 0:00:18]} 52... a2 {[%clk 0:00:33.5]} 53. h7 {[%clk 0:00:18.7]} 53...
a1=Q {[%clk 0:00:32.2]} 54. h8=Q+ {[%clk 0:00:19.4]} 54... Ka2 {[%clk
0:00:32.4]} 55. Qxa1+ {[%clk 0:00:19.8]} 55... Kxa1 {[%clk 0:00:33.3]} 1/2-1/2

[Event "*** Titled Tuesday Blitz"]
[Site "Chess.com"]
[Date "2020.11.03"]
[Round "8"]
[White "Kaslask"]
[Black "Forantes"]
[Result "1-0"]
[WhiteElo "2303"]
[BlackElo "2374"]
[TimeControl "180+1"]
[EndTime "11:32:39 PST"]
[Termination "Kaslask won by checkmate"]

1. d4 {[%clk 0:03:00.9]} 1... Nf6 {[%clk 0:02:55.8]} 2. c4 {[%clk 0:03:00.4]}
2... g6 {[%clk 0:02:55.8]} 3. Nc3 {[%clk 0:02:59.3]} 3... d5 {[%clk 0:02:54.1]}
4. cxd5 {[%clk 0:02:58.5]} 4... Nxd5 {[%clk 0:02:55]} 5. Bd2 {[%clk 0:02:58.7]}
5... Bg7 {[%clk 0:02:53]} 6. e4 {[%clk 0:02:58.2]} 6... Nb6 {[%clk 0:02:53.6]}
7. Be3 {[%clk 0:02:58.1]} 7... O-O {[%clk 0:02:53.5]} 8. f4 {[%clk 0:02:57.8]}
8... Nc6 {[%clk 0:02:53.2]} 9. d5 {[%clk 0:02:54.5]} 9... Na5 {[%clk 0:02:47.9]}
10. Bd4 {[%clk 0:02:54]} 10... e5 {[%clk 0:02:44.5]} 11. Bxe5 {[%clk 0:02:53.8]}
11... f6 {[%clk 0:02:23.2]} 12. Bd4 {[%clk 0:02:48.8]} 12... Re8 {[%clk
0:02:23.1]} 13. Be2 {[%clk 0:02:28.4]} 13... Nac4 {[%clk 0:02:18.1]} 14. Qb3
{[%clk 0:02:24.2]} 14... Nd6 {[%clk 0:02:16]} 15. Bf3 {[%clk 0:02:08.7]} 15...
Bf5 {[%clk 0:02:05]} 16. O-O-O {[%clk 0:01:57.3]} 16... Nxe4 {[%clk 0:01:57.7]}
17. Nxe4 {[%clk 0:01:53.6]} 17... Bxe4 {[%clk 0:01:57.8]} 18. Bxe4 {[%clk
0:01:50.2]} 18... Rxe4 {[%clk 0:01:56.6]} 19. Bc3 {[%clk 0:01:31.8]} 19... a5
{[%clk 0:01:38]} 20. Nf3 {[%clk 0:01:30.2]} 20... a4 {[%clk 0:01:37.2]} 21. Qb5
{[%clk 0:01:29.9]} 21... Qd6 {[%clk 0:01:24.3]} 22. Rhe1 {[%clk 0:01:17.4]}
22... Qxf4+ {[%clk 0:01:02.5]} 23. Kb1 {[%clk 0:00:59.7]} 23... a3 {[%clk
0:00:46.7]} 24. d6 {[%clk 0:00:53.8]} 24... Bf8 {[%clk 0:00:09.9]} 25. dxc7
{[%clk 0:00:44.4]} 25... axb2 {[%clk 0:00:04.5]} 26. Qxb6 {[%clk 0:00:37.8]}
26... Rxe1 {[%clk 0:00:04.4]} 27. Qb3+ {[%clk 0:00:30.5]} 27... Kg7 {[%clk
0:00:02.4]} 28. Bxe1 {[%clk 0:00:19.5]} 28... Rc8 {[%clk 0:00:03]} 29. Rd7+
{[%clk 0:00:17]} 29... Kh8 {[%clk 0:00:03.6]} 30. Bc3 {[%clk 0:00:15.7]} 30...
Qe4+ {[%clk 0:00:03.8]} 31. Kxb2 {[%clk 0:00:14.9]} 31... Qe2+ {[%clk
0:00:03.7]} 32. Nd2 {[%clk 0:00:13.5]} 32... Bg7 {[%clk 0:00:01.3]} 33. Qf7
{[%clk 0:00:14]} 33... Rg8 {[%clk 0:00:01.7]} 34. c8=Q {[%clk 0:00:12.8]} 34...
Qb5+ {[%clk 0:00:01.3]} 35. Kc2 {[%clk 0:00:10.8]} 35... Qa4+ {[%clk 0:00:01.7]}
36. Nb3 {[%clk 0:00:09.4]} 36... Qe4+ {[%clk 0:00:01.8]} 37. Kb2 {[%clk
0:00:09.1]} 37... Qxg2+ {[%clk 0:00:02.2]} 38. Ka3 {[%clk 0:00:08.4]} 38... Bf8+
{[%clk 0:00:02.6]} 39. Qcxf8 {[%clk 0:00:05]} 39... Rxf8 {[%clk 0:00:03.1]} 40.
Qg7# {[%clk 0:00:04.6]} 1-0

[Event "*** Titled Tuesday Blitz"]
[Site "Chess.com"]
[Date "2020.11.03"]
[Round "8"]
[White "AliKa2810"]
[Black "Loy_Konstantin"]
[Result "1-0"]
[WhiteElo "2566"]
[BlackElo "2381"]
[TimeControl "180+1"]
[EndTime "11:32:40 PST"]
[Termination "AliKa2810 won on time"]

1. c4 {[%clk 0:02:59.3]} 1... c5 {[%clk 0:02:57.8]} 2. Nc3 {[%clk 0:02:58.4]}
2... Nc6 {[%clk 0:02:57.7]} 3. Nf3 {[%clk 0:02:56.8]} 3... Nf6 {[%clk
0:02:55.5]} 4. d4 {[%clk 0:02:54.7]} 4... cxd4 {[%clk 0:02:56.4]} 5. Nxd4 {[%clk
0:02:55]} 5... g6 {[%clk 0:02:56.3]} 6. e4 {[%clk 0:02:53.3]} 6... Nxd4 {[%clk
0:02:55.5]} 7. Qxd4 {[%clk 0:02:52.8]} 7... d6 {[%clk 0:02:56.1]} 8. Be2 {[%clk
0:02:52.6]} 8... Bg7 {[%clk 0:02:56.1]} 9. O-O {[%clk 0:02:53.1]} 9... O-O
{[%clk 0:02:56.1]} 10. Qd2 {[%clk 0:02:44.3]} 10... Be6 {[%clk 0:02:55.8]} 11.
f3 {[%clk 0:02:38.7]} 11... Re8 {[%clk 0:02:22.7]} 12. b3 {[%clk 0:02:36.4]}
12... Qa5 {[%clk 0:02:16.3]} 13. Bb2 {[%clk 0:02:36.2]} 13... Rec8 {[%clk
0:02:14.2]} 14. Rad1 {[%clk 0:02:35.2]} 14... a6 {[%clk 0:02:13.4]} 15. Na4
{[%clk 0:02:28.4]} 15... Qxd2 {[%clk 0:02:12.8]} 16. Rxd2 {[%clk 0:02:29.3]}
16... Nd7 {[%clk 0:02:12.5]} 17. Bxg7 {[%clk 0:02:20.3]} 17... Kxg7 {[%clk
0:02:13.4]} 18. f4 {[%clk 0:02:20.7]} 18... f5 {[%clk 0:02:11.9]} 19. exf5
{[%clk 0:02:16.3]} 19... Bxf5 {[%clk 0:02:08.7]} 20. Bf3 {[%clk 0:02:14.4]}
20... Rab8 {[%clk 0:02:05.2]} 21. g4 {[%clk 0:02:14.2]} 21... Be6 {[%clk
0:01:57.5]} 22. Re1 {[%clk 0:02:11.7]} 22... Kf6 {[%clk 0:01:38.6]} 23. g5+
{[%clk 0:02:03.8]} 23... Kf7 {[%clk 0:01:36.3]} 24. Rxe6 {[%clk 0:02:03.5]}
24... Kxe6 {[%clk 0:01:32.2]} 25. Bg4+ {[%clk 0:02:04.1]} 25... Kf7 {[%clk
0:01:32.5]} 26. Bxd7 {[%clk 0:02:04.6]} 26... Rc7 {[%clk 0:01:31.9]} 27. Nb6
{[%clk 0:02:01.7]} 27... Rd8 {[%clk 0:01:20.6]} 28. Ba4 {[%clk 0:01:57.9]} 28...
Rc5 {[%clk 0:01:07.6]} 29. b4 {[%clk 0:01:47.9]} 29... Rf5 {[%clk 0:00:59.9]}
30. Rf2 {[%clk 0:01:46.3]} 30... e5 {[%clk 0:00:57.2]} 31. h4 {[%clk 0:01:35.6]}
31... Ke6 {[%clk 0:00:47.8]} 32. Bb3 {[%clk 0:01:18.5]} 32... Rxf4 {[%clk
0:00:43.1]} 33. Rxf4 {[%clk 0:01:09.3]} 33... exf4 {[%clk 0:00:44]} 34. Kf2
{[%clk 0:01:09.5]} 34... Ke5 {[%clk 0:00:40.8]} 35. Kf3 {[%clk 0:01:09.3]} 35...
Kd4 {[%clk 0:00:39.1]} 36. Nd5 {[%clk 0:01:05.5]} 36... Rf8 {[%clk 0:00:26.7]}
37. Nf6 {[%clk 0:01:03.2]} 37... Kc3 {[%clk 0:00:26.1]} 38. b5 {[%clk
0:00:40.9]} 38... a5 {[%clk 0:00:23.3]} 39. Kxf4 {[%clk 0:00:39.5]} 39... Kb4
{[%clk 0:00:22.6]} 40. Kg4 {[%clk 0:00:24.6]} 40... a4 {[%clk 0:00:20.8]} 41.
Bc2 {[%clk 0:00:23.8]} 41... a3 {[%clk 0:00:15.2]} 42. h5 {[%clk 0:00:18.5]}
42... gxh5+ {[%clk 0:00:12.8]} 43. Kxh5 {[%clk 0:00:18.9]} 43... Rf7 {[%clk
0:00:11.3]} 44. Bxh7 {[%clk 0:00:18.4]} 44... Kxc4 {[%clk 0:00:08.1]} 45. Bg8
{[%clk 0:00:16.5]} 1-0

[Event "*** Titled Tuesday Blitz"]
[Site "Chess.com"]
[Date "2020.11.03"]
[Round "8"]
[White "AndrewMaco"]
[Black "Sanan_Sjugirov"]
[Result "0-1"]
[WhiteElo "2673"]
[BlackElo "2847"]
[TimeControl "180+1"]
[EndTime "11:32:45 PST"]
[Termination "Sanan_Sjugirov won on time"]

1. e4 {[%clk 0:03:00.9]} 1... c5 {[%clk 0:02:59.7]} 2. Nf3 {[%clk 0:03:00.7]}
2... d6 {[%clk 0:03:00.1]} 3. d4 {[%clk 0:03:01.3]} 3... cxd4 {[%clk 0:03:01]}
4. Nxd4 {[%clk 0:03:02.2]} 4... Nf6 {[%clk 0:03:01.5]} 5. Nc3 {[%clk 0:03:02.9]}
5... a6 {[%clk 0:03:02.2]} 6. f3 {[%clk 0:03:03.5]} 6... e5 {[%clk 0:03:02.3]}
7. Nb3 {[%clk 0:03:03.9]} 7... Be6 {[%clk 0:03:03]} 8. Be3 {[%clk 0:03:04.4]}
8... h5 {[%clk 0:03:03.5]} 9. Nd5 {[%clk 0:03:05]} 9... Bxd5 {[%clk 0:03:03.4]}
10. exd5 {[%clk 0:03:05.9]} 10... Nbd7 {[%clk 0:03:04.1]} 11. Qd2 {[%clk
0:03:04.6]} 11... g6 {[%clk 0:03:04.2]} 12. O-O-O {[%clk 0:03:05]} 12... Bg7
{[%clk 0:03:02]} 13. Kb1 {[%clk 0:03:04.1]} 13... b6 {[%clk 0:03:01.5]} 14. Be2
{[%clk 0:03:02.3]} 14... Nc5 {[%clk 0:02:58]} 15. g4 {[%clk 0:02:59]} 15... Qc7
{[%clk 0:02:43.5]} 16. h4 {[%clk 0:02:28.8]} 16... a5 {[%clk 0:02:14.4]} 17. a4
{[%clk 0:02:16.2]} 17... Kf8 {[%clk 0:01:51.4]} 18. g5 {[%clk 0:02:11.8]} 18...
Nfd7 {[%clk 0:01:51]} 19. Bb5 {[%clk 0:02:12.2]} 19... Kg8 {[%clk 0:01:47.4]}
20. Rhf1 {[%clk 0:02:11.4]} 20... Kh7 {[%clk 0:01:46.8]} 21. f4 {[%clk
0:02:10.5]} 21... exf4 {[%clk 0:01:46.6]} 22. Rxf4 {[%clk 0:02:10.4]} 22... Ne5
{[%clk 0:01:46.6]} 23. Nd4 {[%clk 0:02:00.6]} 23... Rhf8 {[%clk 0:01:25.6]} 24.
Rdf1 {[%clk 0:02:00.2]} 24... Rac8 {[%clk 0:01:20.2]} 25. Qe2 {[%clk 0:01:32.6]}
25... Kg8 {[%clk 0:01:16.2]} 26. Nc6 {[%clk 0:01:14.9]} 26... Rce8 {[%clk
0:01:14]} 27. Nxe5 {[%clk 0:01:06.8]} 27... Rxe5 {[%clk 0:01:13.3]} 28. Qf3
{[%clk 0:01:07.4]} 28... Qe7 {[%clk 0:01:07.4]} 29. Bd2 {[%clk 0:01:06.2]} 29...
Re4 {[%clk 0:00:57.9]} 30. Rxe4 {[%clk 0:00:59.5]} 30... Nxe4 {[%clk 0:00:58.3]}
31. Bc1 {[%clk 0:00:52.8]} 31... Qe5 {[%clk 0:00:54.9]} 32. Qd3 {[%clk 0:00:42]}
32... Nc5 {[%clk 0:00:51.2]} 33. Qf3 {[%clk 0:00:34.3]} 33... Qd4 {[%clk
0:00:49.7]} 34. Rd1 {[%clk 0:00:18.8]} 34... Qxh4 {[%clk 0:00:46.8]} 35. b3
{[%clk 0:00:12.3]} 35... Ne4 {[%clk 0:00:39.1]} 36. Bb2 {[%clk 0:00:07]} 36...
Bxb2 {[%clk 0:00:36.7]} 37. Kxb2 {[%clk 0:00:07.9]} 37... Nxg5 {[%clk
0:00:27.1]} 38. Qf6 {[%clk 0:00:08.2]} 38... Qg3 {[%clk 0:00:23.7]} 39. Rd3
{[%clk 0:00:07.5]} 39... Ne4 {[%clk 0:00:18]} 40. Qd4 {[%clk 0:00:03.9]} 40...
Qg4 {[%clk 0:00:14]} 41. Qxb6 {[%clk 0:00:03.2]} 41... Nc5 {[%clk 0:00:13.4]}
42. Rc3 {[%clk 0:00:02]} 42... Qb4 {[%clk 0:00:10.8]} 0-1

[Event "*** Titled Tuesday Blitz"]
[Site "Chess.com"]
[Date "2020.11.03"]
[Round "8"]
[White "davigator"]
[Black "keepitcoming"]
[Result "1-0"]
[WhiteElo "2391"]
[BlackElo "2518"]
[TimeControl "180+1"]
[EndTime "11:32:45 PST"]
[Termination "davigator won by resignation"]

1. e4 {[%clk 0:03:00.9]} 1... c6 {[%clk 0:03:00.1]} 2. d4 {[%clk 0:03:00]} 2...
d5 {[%clk 0:03:01]} 3. e5 {[%clk 0:03:00.4]} 3... Bf5 {[%clk 0:03:00.7]} 4. h4
{[%clk 0:03:00.4]} 4... h5 {[%clk 0:03:00.3]} 5. c4 {[%clk 0:03:00.7]} 5... e6
{[%clk 0:02:55.3]} 6. Nc3 {[%clk 0:03:00.4]} 6... Ne7 {[%clk 0:02:46.1]} 7. Bg5
{[%clk 0:02:57.8]} 7... Qb6 {[%clk 0:02:34.3]} 8. Qd2 {[%clk 0:02:57]} 8... Ng6
{[%clk 0:02:25.2]} 9. a3 {[%clk 0:02:46.9]} 9... a5 {[%clk 0:02:18.7]} 10. Be2
{[%clk 0:02:34.5]} 10... Qb3 {[%clk 0:02:00.1]} 11. c5 {[%clk 0:02:29.3]} 11...
Qc2 {[%clk 0:01:41.3]} 12. Nf3 {[%clk 0:02:25]} 12... Nd7 {[%clk 0:01:31.9]} 13.
Rc1 {[%clk 0:02:12.5]} 13... Qxd2+ {[%clk 0:01:30.2]} 14. Kxd2 {[%clk
0:02:13.1]} 14... f6 {[%clk 0:01:25.1]} 15. exf6 {[%clk 0:02:10.6]} 15... gxf6
{[%clk 0:01:26]} 16. Be3 {[%clk 0:02:10.4]} 16... e5 {[%clk 0:01:26.3]} 17. b4
{[%clk 0:02:10.2]} 17... e4 {[%clk 0:01:13.8]} 18. Ne1 {[%clk 0:02:05.7]} 18...
Bg4 {[%clk 0:01:05.6]} 19. f3 {[%clk 0:02:02.8]} 19... exf3 {[%clk 0:01:03.2]}
20. gxf3 {[%clk 0:02:02.8]} 20... Bf5 {[%clk 0:01:02.2]} 21. Nd3 {[%clk
0:02:02]} 21... Be7 {[%clk 0:00:46]} 22. Nf4 {[%clk 0:01:58.1]} 22... Kf7 {[%clk
0:00:39.2]} 23. Ra1 {[%clk 0:01:48.7]} 23... Ndf8 {[%clk 0:00:30.8]} 24. b5
{[%clk 0:01:40.9]} 24... Bd7 {[%clk 0:00:29.7]} 25. b6 {[%clk 0:01:36.8]} 25...
Nxf4 {[%clk 0:00:28.6]} 26. Bxf4 {[%clk 0:01:36.5]} 26... Ne6 {[%clk 0:00:29.5]}
27. Be3 {[%clk 0:01:34.9]} 27... f5 {[%clk 0:00:30.4]} 28. Bd3 {[%clk
0:01:29.5]} 28... f4 {[%clk 0:00:29.4]} 29. Bf2 {[%clk 0:01:29.3]} 29... Bf6
{[%clk 0:00:30.3]} 30. Ne2 {[%clk 0:01:29.2]} 30... Rae8 {[%clk 0:00:26.2]} 31.
Rag1 {[%clk 0:01:28.6]} 31... Rhg8 {[%clk 0:00:26]} 32. Bh7 {[%clk 0:01:17.3]}
32... Rg7 {[%clk 0:00:25.1]} 33. Bc2 {[%clk 0:01:13.4]} 33... Reg8 {[%clk
0:00:24.5]} 34. Rxg7+ {[%clk 0:01:13.6]} 34... Rxg7 {[%clk 0:00:25.4]} 35. Rh2
{[%clk 0:01:08.5]} 35... Bc8 {[%clk 0:00:19.3]} 36. Kd3 {[%clk 0:01:02.5]} 36...
Nd8 {[%clk 0:00:17]} 37. Kd2 {[%clk 0:01:02.1]} 37... Ne6 {[%clk 0:00:16.6]} 38.
Bd3 {[%clk 0:01:01.2]} 38... Rg8 {[%clk 0:00:16.5]} 39. Ke1 {[%clk 0:00:57.5]}
39... Bh8 {[%clk 0:00:16.4]} 40. Kf1 {[%clk 0:00:56.7]} 40... Kf6 {[%clk
0:00:16.1]} 41. Rg2 {[%clk 0:00:56.7]} 41... Rxg2 {[%clk 0:00:16]} 42. Kxg2
{[%clk 0:00:56.6]} 42... Bg7 {[%clk 0:00:15.8]} 43. Kf1 {[%clk 0:00:56.4]} 43...
Bh6 {[%clk 0:00:15.4]} 44. Ke1 {[%clk 0:00:56.2]} 44... Bg7 {[%clk 0:00:14.9]}
45. Kd1 {[%clk 0:00:56.2]} 45... Kf7 {[%clk 0:00:15.3]} 46. Kc2 {[%clk
0:00:56.5]} 46... Nd8 {[%clk 0:00:12.3]} 47. Kb3 {[%clk 0:00:56.4]} 47... Ke6
{[%clk 0:00:10]} 48. Ka4 {[%clk 0:00:56.3]} 48... Nf7 {[%clk 0:00:08.9]} 49.
Kxa5 {[%clk 0:00:55.8]} 49... Nh6 {[%clk 0:00:08.7]} 50. Kb4 {[%clk 0:00:55]}
50... Nf5 {[%clk 0:00:08.7]} 51. Bxf5+ {[%clk 0:00:53.7]} 51... Kxf5 {[%clk
0:00:09.6]} 52. a4 {[%clk 0:00:52.9]} 52... Bf6 {[%clk 0:00:09.9]} 53. a5 {[%clk
0:00:51.8]} 53... Be7 {[%clk 0:00:09.5]} 54. Kc3 {[%clk 0:00:51.8]} 54... Bf6
{[%clk 0:00:08.8]} 55. Kd3 {[%clk 0:00:52.3]} 55... Be7 {[%clk 0:00:09]} 56. Nc1
{[%clk 0:00:51.6]} 56... Bf6 {[%clk 0:00:09.4]} 57. Nb3 {[%clk 0:00:51.2]} 57...
Be7 {[%clk 0:00:09.5]} 58. a6 {[%clk 0:00:51.5]} 58... bxa6 {[%clk 0:00:08.8]}
59. Na5 {[%clk 0:00:52.1]} 59... Bd8 {[%clk 0:00:07.5]} 60. Nxc6 {[%clk
0:00:51.1]} 60... Bf6 {[%clk 0:00:04.3]} 61. Na5 {[%clk 0:00:50.2]} 61... Kg6
{[%clk 0:00:02.9]} 62. b7 {[%clk 0:00:49.8]} 62... Bf5+ {[%clk 0:00:03.8]} 63.
Kc3 {[%clk 0:00:49.2]} 63... Bxd4+ {[%clk 0:00:03.9]} 64. Bxd4 {[%clk
0:00:48.2]} 1-0